fUST/lending_fUST_20240801
["ID","MTS","AMOUNT","RATE_DAILY","PERIOD"]
[333769320,1722465055020,-1597.78,0.0001452,2]
[333769321,1722465055030,-500.0,0.0001452,2]
[333769322,1722465055040,-310.82433984,0.0001452,2]
[333769323,1722465055050,-151.0,0.0001452,2]
[333769324,1722465055059,-424.418576,0.0001452,2]
[333769325,1722465055069,-424.418576,0.0001452,2]
[333769326,1722465055078,-200.165738,0.0001452,2]
[333769327,1722465055088,-200.165738,0.0001452,2]
[333769328,1722465055098,-500.0,0.0001452,2]
[333769329,1722465055107,-500.0,0.0001452,2]
[333769330,1722465055119,-500.0,0.0001452,2]
[333769331,1722465055129,-159.09405686,0.0001452,2]
[333769332,1722465055139,-336.3439377,0.0001452,2]
[333769333,1722465055149,-299.5723814,0.0001452,2]
[333769334,1722465055159,-151.0,0.0001452,2]
[333769335,1722465055168,-543.15,0.0001452,2]
[333769336,1722465055178,-151.0,0.0001452,2]
[333769337,1722465055188,-596.71,0.0001452,2]
[333769338,1722465055199,-1095.77,0.0001452,2]
[333769339,1722465055210,-500.0,0.0001452,2]
[333769340,1722465055220,-500.0,0.0001452,2]
[333769341,1722465055230,-500.0,0.0001452,2]
[333769342,1722465055240,-821.803677,0.0001452,2]
[333769343,1722465055250,-204.206899,0.0001452,2]
[333769344,1722465055260,-763.92,0.0001452,2]
[333769345,1722465055270,-821.803677,0.0001452,2]
[333769346,1722465055279,-204.206899,0.0001452,2]
[333769347,1722465055290,-167.467709,0.0001452,2]
[333769348,1722465055300,-500.0,0.0001452,2]
[333769349,1722465055310,-167.467709,0.0001452,2]
[333769350,1722465055320,-1650.89,0.0001452,2]
[333769351,1722465055330,-2459.64,0.0001452,2]
[333769352,1722465055341,-6589.1,0.0001452,2]
[333769353,1722465055351,-765.61,0.0001452,2]
[333769354,1722465055361,-1404.86,0.0001452,2]
[333769355,1722465055372,-685.62,0.0001452,2]
[333769356,1722465055383,-500.0,0.0001452,2]
[333769357,1722465055393,-1128.318205,0.0001452,2]
[333769358,1722465055403,-1128.318205,0.0001452,2]
[333769359,1722465055413,-364.661582,0.0001452,2]
[333769360,1722465055423,-500.0,0.0001452,2]
[333769361,1722465055433,-364.661582,0.0001452,2]
[333769362,1722465055442,-151.0,0.0001452,2]
[333769363,1722465055452,-2645.66,0.0001452,2]
[333769364,1722465055462,-500.0,0.0001452,2]
[333769365,1722465055471,-500.0,0.0001452,2]
[333769366,1722465055481,-500.0,0.0001452,2]
[333769367,1722465055490,-863.6,0.0001452,2]
[333769368,1722465055500,-500.0,0.0001452,2]
[333769369,1722465055510,-1240.85,0.0001452,2]
[333769370,1722465055519,-1390.11,0.0001452,2]
[333769371,1722465055530,-500.0,0.0001452,2]
[333769372,1722465055539,-500.0,0.0001452,2]
[333769373,1722465055549,-2899.2525632,0.0001452,2]
[333769374,1722465055694,-459.20355537,0.0001452,2]
[333769375,1722465055707,-1481.25388143,0.0001452,2]
[333769376,1722465055718,-500.0,0.0001452,2]
[333769377,1722465055728,-500.0,0.0001452,2]
[333769378,1722465055739,-500.0,0.0001452,2]
[333769379,1722465055749,-1144.32,0.0001452,2]
[333769380,1722465055758,-1039.2,0.0001452,2]
[333769381,1722465055769,-500.0,0.0001452,2]
[333769382,1722465055780,-500.0,0.0001452,2]
[333769383,1722465055793,-1181.55,0.0001452,2]
[333769384,1722465055805,-1517.04,0.0001452,2]
[333769385,1722465055815,-525.19,0.0001452,2]
[333769386,1722465055825,-630.24,0.0001452,2]
[333769387,1722465055838,-540.96,0.0001452,2]
[333769388,1722465055848,-829.14,0.0001452,2]
[333769389,1722465055859,-500.0,0.0001452,2]
[333769390,1722465055874,-530.49,0.0001452,2]
[333769391,1722465055885,-1951.27,0.0001452,2]
[333769392,1722465055895,-517.73,0.0001452,2]
[333769393,1722465055904,-500.0,0.0001452,2]
[333769394,1722465055914,-500.0,0.0001452,2]
[333769395,1722465055924,-500.0,0.0001452,2]
[333769396,1722465055934,-999.26,0.0001452,2]
[333769397,1722465055943,-1150.11,0.0001452,2]
[333769398,1722465055954,-614.73,0.0001452,2]
[333769399,1722465055964,-2075.14,0.0001452,2]
[333769400,1722465055974,-957.28,0.0001452,2]
[333769401,1722465055984,-810.9,0.0001452,2]
[333769402,1722465055994,-1208.54,0.0001452,2]
[333769403,1722465056003,-983.97,0.0001452,2]
[333769404,1722465056012,-664.642227,0.0001452,2]
[333769405,1722465056021,-1174.19,0.0001452,2]
[333769406,1722465056033,-664.642227,0.0001452,2]
[333769407,1722465056043,-769.58,0.0001452,2]
[333769408,1722465056053,-1292.5,0.0001452,2]
[333769409,1722465056063,-6971.9,0.0001452,2]
[333769410,1722465056072,-2495.07,0.0001452,2]
[333769411,1722465056081,-514.85,0.0001452,2]
[333769412,1722465056091,-6032.19,0.0001452,2]
[333769413,1722465056101,-500.0,0.0001452,2]
[333769414,1722465056110,-669.614833,0.0001452,2]
[333769415,1722465056121,-907.79,0.0001452,2]
[333769416,1722465056131,-678.12,0.0001452,2]
[333769417,1722465056141,-39.09683156,0.0001452,2]
[333769433,1722465699507,157.67039442,9.999e-05,2]
[333769435,1722465826006,196.36879843,9.999e-05,2]
[333769436,1722465841597,404.34085405,9.999e-05,2]
[333769439,1722465958445,156.40691398,9.999e-05,2]
[333769440,1722466018141,-219.88869319,0.00010959,2]
[333769456,1722466232543,-250.0000151,0.00012201,2]
[333769458,1722466232553,-300.0,0.00012391,2]
[333769459,1722466232562,-300.0,0.00012391,2]
[333769461,1722466232572,-3700.4427612,0.00012392,2]
[333769464,1722466238543,-13509.6,0.00012392,2]
[333769465,1722466238578,-2147.12798362,0.00012392,2]
[333769466,1722466238589,-547.3820516,0.00012392,2]
[333769534,1722466240655,-393.56,0.00010959,2]
[333769535,1722466240665,-4995.44720358,0.00012392,2]
[333769536,1722466240675,-173.093222,0.00012986,2]
[333769537,1722466240685,-674.59923688,0.00013597,2]
[333769538,1722466240695,-420.0,0.0001363,2]
[333769539,1722466240706,-674.59923686,0.00013666,2]
[333769540,1722466240718,-4682.23074648,0.00013678,2]
[333769541,1722466240728,-28090.53773784,0.0001368,2]
[333769542,1722466240740,-40000.0,0.0001368,2]
[333769543,1722466240752,-26911.89950281,0.0001368,2]
[333769556,1722466243721,-3300.1543449,0.0001368,2]
[333769557,1722466243733,-1025.8805,0.0001368,2]
[333769558,1722466243745,-3925.11735342,0.0001368,2]
[333769567,1722466246661,-36917.08619295,0.0001368,2]
[333769569,1722466246689,-7425.7581266,0.0001368,2]
[333769570,1722466257317,663.67519992,9.999e-05,2]
[333769576,1722466305413,188.13767022,9.999e-05,2]
[333769577,1722466312530,173.03012309,9.999e-05,2]
[333769578,1722466313415,230.37770091,9.999e-05,2]
[333769579,1722466319707,628.45453856,9.999e-05,2]
[333769581,1722466323874,200.75511294,0.0001,2]
[333769582,1722466325200,519.14870802,9.999e-05,2]
[333769583,1722466328206,209.76159153,9.999e-05,2]
[333769584,1722466335334,778.99945191,9.999e-05,2]
[333769585,1722466336798,171.56633397,9.999e-05,2]
[333769586,1722466336831,154.96701285,9.999e-05,2]
[333769587,1722466338734,189.33829521,9.999e-05,2]
[333769588,1722466352433,288.38381138,9.999e-05,2]
[333769590,1722466458814,218.4546097,9.999e-05,2]
[333769591,1722466461679,14948.86164883,9.999e-05,2]
[333769592,1722466466042,154.77557542,9.999e-05,2]
[333769593,1722466474188,2107.09834524,9.999e-05,2]
[333769595,1722466489611,542.85663904,9.999e-05,2]
[333769596,1722466546054,156.89121402,9.999e-05,2]
[333769597,1722466556499,644.57917452,9.999e-05,2]
[333769622,1722467432762,-327.97,0.00010959,2]
[333769624,1722467432772,-273.31,0.00010959,2]
[333769626,1722467432783,-227.76,0.00010959,2]
[333769627,1722467432795,-189.8,0.00010959,2]
[333769628,1722467432805,-300.0,0.00011545,2]
[333769629,1722467432814,-4676.79506649,0.00011546,2]
[333769630,1722467432827,-329.16322832,0.00011546,2]
[333769631,1722467432840,-1710.65187877,0.00011546,2]
[333769632,1722467432851,-1030.92905881,0.00011546,2]
[333769633,1722467432870,-1905.52945786,0.00011546,2]
[333769702,1722467439927,-158.16,0.00010959,2]
[333769703,1722467439937,-5424.92338431,0.00011546,2]
[333769704,1722467439949,-2653.31491435,0.00011546,2]
[333769705,1722467439961,-7168.69301109,0.00011546,2]
[333769706,1722467439972,-239.71656103,0.00012119,2]
[333769707,1722467439982,-1629.26928721,0.0001212,2]
[333769708,1722467439991,-239.87184714,0.0001212,2]
[333769709,1722467440003,-420.0,0.00012699,2]
[333769710,1722467440012,-2579.69738792,0.000129,2]
[333769711,1722467440022,-176.456569,0.00012986,2]
[333769712,1722467440031,-7966.31089195,0.00013,2]
[333769713,1722467440040,-153.0,0.00013,2]
[333769714,1722467440049,-153.0,0.00013,2]
[333769715,1722467440059,-153.0,0.00013,2]
[333769717,1722467440069,-153.0,0.00013,2]
[333769719,1722467440079,-153.0,0.00013078,2]
[333769721,1722467440090,-294.1445528,0.00013116,2]
[333769723,1722467440099,-228.536806,0.00013178,2]
[333769725,1722467440111,-4406.31914664,0.00013195,2]
[333769727,1722467440121,-294.1445528,0.000132,2]
[333769729,1722467440130,-10.39866238,0.000133,2]
[333769732,1722467440143,-142.60133762,0.000133,2]
[333769734,1722467440154,-294.1445528,0.000133,2]
[333769736,1722467440163,-294.1445528,0.000133,2]
[333769738,1722467440175,-206.8816348,0.000133,2]
[333769740,1722467440187,-206.8816348,0.000133,2]
[333769742,1722467440197,-294.1445528,0.000133,2]
[333769744,1722467440208,-309.4544038,0.00013452,2]
[333769747,1722467440219,-206.0311604,0.00013478,2]
[333769749,1722467440230,-483.42876901,0.00013598,2]
[333769751,1722467440242,-46047.54486128,0.0001368,2]
[333769796,1722467442839,-9035.27774087,0.0001368,2]
[333769797,1722467442851,-4490.18360412,0.0001368,2]
[333769810,1722467445952,-19634.93190073,0.0001368,2]
[333769811,1722467445962,-500.0,0.00013687,2]
[333769812,1722467445971,-500.0,0.00013687,2]
[333769813,1722467445980,-500.0,0.00013687,2]
[333769814,1722467445990,-944.42379858,0.00013688,5]
[333769815,1722467445999,-119266.57535221,0.00013688,2]
[333769816,1722467508527,163.28779954,9.999e-05,2]
[333769817,1722467510475,188.00989658,9.999e-05,2]
[333769818,1722467517037,154.9725522,9.999e-05,2]
[333769819,1722467518264,309.52024362,9.999e-05,2]
[333769820,1722467525708,256.14336745,9.999e-05,2]
[333769821,1722467528393,285.14370431,9.999e-05,2]
[333769822,1722467584701,496.5675832,9.999e-05,2]
[333769823,1722467589775,1988.04997954,9.999e-05,2]
[333769825,1722467626242,1699.19579432,9.999e-05,2]
[333769826,1722467681671,182.55785908,9.999e-05,2]
[333769836,1722468074351,1000.0,0.00023099,120]
[333769837,1722468271919,568.08421519,9.999e-05,2]
[333769842,1722468365248,205.998322,9.999e-05,2]
[333769843,1722468367617,154.81331373,0.0001212,10]
[333769844,1722468368771,196.16518014,9.999e-05,2]
[333769847,1722468374964,180.68356367,0.0001212,7]
[333769848,1722468389823,429.77318836,9.999e-05,2]
[333769849,1722468393346,328.21948819,9.999e-05,2]
[333769850,1722468393606,288.18607124,9.999e-05,2]
[333769851,1722468405516,663.67519992,9.999e-05,2]
[333769854,1722468461165,154.77557542,9.999e-05,2]
[333769861,1722468568892,307.95315577,9.999e-05,2]
[333769871,1722468632024,-790.84,0.00010959,2]
[333769872,1722468632034,-166.666666,0.00010959,2]
[333769873,1722468632044,-166.666666,0.00011444,2]
[333769874,1722468632054,-166.666666,0.0001193,2]
[333769875,1722468632064,-300.0,0.00011938,2]
[333769876,1722468632074,-300.0,0.00011938,2]
[333769877,1722468632084,-7277.11726461,0.00011939,2]
[333769878,1722468632096,-604.99998376,0.00011939,2]
[333769879,1722468632113,-1722.19903919,0.00011939,2]
[333769880,1722468632132,-466.0,0.00011939,2]
[333769881,1722468632144,-1008.66608802,0.00011939,2]
[333769883,1722468632156,-3403.53323334,0.00011939,2]
[333769893,1722468637877,-2756.6988607,0.00011939,2]
[333769905,1722468638102,-7660.78553038,0.00011939,2]
[333769906,1722468638112,-157.590386,0.00011986,2]
[333769907,1722468638122,-157.590386,0.00012022,2]
[333769908,1722468638132,-157.590386,0.00012059,2]
[333769909,1722468638142,-157.590386,0.00012096,2]
[333769910,1722468638152,-1180.79074834,0.0001212,2]
[333769911,1722468638162,-1629.26928721,0.0001212,2]
[333769912,1722468638171,-155.99983562,0.0001212,2]
[333769913,1722468638180,-157.590386,0.00012133,2]
[333769914,1722468638192,-157.590386,0.00012169,2]
[333769915,1722468638203,-157.590386,0.00012206,2]
[333769916,1722468638214,-157.590386,0.00012243,2]
[333769917,1722468638225,-157.590386,0.00012279,2]
[333769918,1722468638235,-157.590386,0.00012316,2]
[333769919,1722468638246,-157.590386,0.00012353,2]
[333769920,1722468638257,-157.590386,0.0001239,2]
[333769921,1722468638266,-166.666666,0.00012415,2]
[333769922,1722468638276,-157.590386,0.00012426,2]
[333769923,1722468638285,-157.590386,0.00012463,2]
[333769924,1722468638295,-157.590386,0.000125,2]
[333769925,1722468638305,-157.590386,0.00012537,2]
[333769926,1722468638315,-157.590386,0.00012573,2]
[333769928,1722468638325,-157.590386,0.0001261,2]
[333769929,1722468638336,-3014.15223253,0.000129,2]
[333769931,1722468638345,-153.0,0.00012978,2]
[333769932,1722468638356,-159.46622,0.00012986,2]
[333769933,1722468638365,-2580.39454049,0.00013,2]
[333769935,1722468638374,-173.228744,0.00013123,2]
[333769936,1722468638384,-294.0187007,0.00013123,2]
[333769937,1722468638395,-153.0,0.00013123,2]
[333769938,1722468638404,-153.0,0.00013123,2]
[333769939,1722468638414,-153.0,0.00013123,2]
[333769940,1722468638426,-206.8816348,0.00013123,2]
[333769941,1722468638436,-294.1445528,0.00013123,2]
[333769942,1722468638445,-420.0,0.00013131,2]
[333769943,1722468638455,-5310.91571796,0.00013237,2]
[333769944,1722468638465,-438.99322283,0.00013588,2]
[333769945,1722468638477,-948.15192172,0.00013597,2]
[333769946,1722468638486,-948.15192169,0.00013597,2]
[333769947,1722468638496,-948.15192169,0.00013598,2]
[333769948,1722468638506,-948.15192169,0.00013598,2]
[333769949,1722468638515,-2000.0,0.00013598,2]
[333769950,1722468638525,-5079.65835669,0.00013598,2]
[333769951,1722468638535,-948.15192169,0.00013598,2]
[333769952,1722468638545,-1947.72662048,0.000136,2]
[333769953,1722468638555,-999.999999,0.00013684,2]
[333769954,1722468638565,-13041.86002713,0.00013686,2]
[333769955,1722468638577,-500.0,0.00013687,2]
[333769956,1722468638587,-500.0,0.00013687,2]
[333769957,1722468638599,-500.0,0.00013687,2]
[333769958,1722468638613,-500.0,0.00013687,2]
[333769959,1722468638623,-500.0,0.00013687,2]
[333769960,1722468638635,-500.0,0.00013687,2]
[333769961,1722468638645,-1428.17736543,0.00013687,2]
[333769962,1722468638655,-10000.0,0.00013688,2]
[333769963,1722468638665,-472.21189929,0.00013688,5]
[333769964,1722468638674,-296861.9812002,0.00013688,2]
[333769965,1722468638691,-510.94687324,0.00013688,2]
[333770005,1722468640186,-56407.4971223,0.00013688,2]
[333770006,1722468640242,-1104.21880026,0.00013688,2]
[333770007,1722468640254,-500.0,0.00013697,2]
[333770008,1722468640266,-500.0,0.00013697,2]
[333770009,1722468640277,-500.0,0.00013697,2]
[333770010,1722468640287,-500.0,0.00013697,2]
[333770011,1722468640298,-500.0,0.00013697,2]
[333770012,1722468640309,-500.0,0.00013697,2]
[333770013,1722468640319,-23419.04120489,0.00013698,5]
[333770014,1722468640329,-500.0,0.00013698,2]
[333770015,1722468640339,-603.30505383,0.00013698,2]
[333770016,1722468640350,-332.66442941,0.00013698,2]
[333770017,1722468640360,-281.62126416,0.00013698,2]
[333770018,1722468640370,-374.4466312,0.00013698,2]
[333770019,1722468640379,-500.0,0.00013698,2]
[333770020,1722468640389,-262.75656386,0.00013698,2]
[333770021,1722468640399,-503.59846868,0.00013698,2]
[333770022,1722468640409,-500.0,0.00013698,2]
[333770023,1722468640418,-501.22756596,0.00013698,2]
[333770024,1722468640428,-500.0,0.00013698,2]
[333770025,1722468640438,-500.0,0.00013698,2]
[333770026,1722468640449,-500.0,0.00013698,2]
[333770027,1722468640458,-500.0,0.00013698,2]
[333770028,1722468640468,-403.60933229,0.00013698,2]
[333770029,1722468640477,-500.0,0.00013698,2]
[333770030,1722468640487,-500.0,0.00013698,2]
[333770031,1722468640496,-500.0,0.00013698,2]
[333770032,1722468640506,-500.0,0.00013698,2]
[333770033,1722468640515,-325.36337819,0.00013698,2]
[333770034,1722468640525,-529.67477119,0.00013698,2]
[333770035,1722468640534,-500.0,0.00013698,2]
[333770036,1722468640544,-500.0,0.00013698,2]
[333770037,1722468640553,-500.0,0.00013698,2]
[333770038,1722468640563,-500.0,0.00013698,2]
[333770039,1722468640573,-500.0,0.00013698,2]
[333770040,1722468640582,-500.0,0.00013698,2]
[333770041,1722468640591,-500.0,0.00013698,2]
[333770042,1722468640601,-500.0,0.00013698,2]
[333770043,1722468640610,-500.0,0.00013698,2]
[333770044,1722468640620,-500.0,0.00013698,2]
[333770045,1722468640630,-151.0,0.00013698,2]
[333770046,1722468640642,-500.0,0.00013698,2]
[333770047,1722468640652,-500.0,0.00013698,2]
[333770048,1722468640663,-500.0,0.00013698,2]
[333770049,1722468640672,-500.0,0.00013698,2]
[333770050,1722468640682,-500.0,0.00013698,2]
[333770051,1722468640692,-500.0,0.00013698,2]
[333770052,1722468640701,-500.0,0.00013698,2]
[333770053,1722468640711,-500.0,0.00013698,2]
[333770054,1722468640721,-356.33661125,0.00013698,2]
[333770055,1722468640733,-500.0,0.00013698,2]
[333770056,1722468640743,-500.0,0.00013698,2]
[333770057,1722468640753,-151.0,0.00013698,2]
[333770058,1722468640765,-500.0,0.00013698,2]
[333770059,1722468640774,-500.0,0.00013698,2]
[333770060,1722468640784,-500.0,0.00013698,2]
[333770061,1722468640793,-500.0,0.00013698,2]
[333770062,1722468640803,-151.0,0.00013698,2]
[333770063,1722468640812,-500.0,0.00013698,2]
[333770064,1722468640822,-514.96496277,0.00013698,2]
[333770065,1722468640832,-505.20120875,0.00013698,2]
[333770066,1722468640842,-445.9911003,0.00013698,2]
[333770067,1722468640851,-1293.84,0.00013698,2]
[333770068,1722468640863,-500.0,0.00013698,2]
[333770069,1722468640875,-512.06726257,0.00013698,2]
[333770070,1722468640887,-531.11048598,0.00013698,2]
[333770071,1722468640898,-500.0,0.00013698,2]
[333770072,1722468640911,-151.0,0.00013698,2]
[333770073,1722468640920,-504.23442038,0.00013698,2]
[333770074,1722468640930,-503.63334197,0.00013698,2]
[333770075,1722468640941,-500.0,0.00013698,2]
[333770076,1722468640953,-500.0,0.00013698,2]
[333770077,1722468640963,-500.0,0.00013698,2]
[333770078,1722468640973,-513.21474084,0.00013698,2]
[333770079,1722468640982,-500.0,0.00013698,2]
[333770080,1722468640992,-500.0,0.00013698,2]
[333770081,1722468641002,-500.0,0.00013698,2]
[333770082,1722468641011,-500.0,0.00013698,2]
[333770083,1722468641021,-500.0,0.00013698,2]
[333770084,1722468641030,-500.0,0.00013698,2]
[333770085,1722468641040,-500.0,0.00013698,2]
[333770086,1722468641050,-500.0,0.00013698,2]
[333770087,1722468641165,-500.0,0.00013698,2]
[333770088,1722468641175,-500.0,0.00013698,2]
[333770089,1722468641185,-500.0,0.00013698,2]
[333770090,1722468641196,-500.0,0.00013698,2]
[333770091,1722468641209,-500.0,0.00013698,2]
[333770092,1722468641220,-500.0,0.00013698,2]
[333770093,1722468641231,-500.0,0.00013698,2]
[333770094,1722468641241,-500.0,0.00013698,2]
[333770095,1722468641251,-797.73,0.00013698,2]
[333770096,1722468641262,-500.0,0.00013698,2]
[333770097,1722468641273,-500.0,0.00013698,2]
[333770098,1722468641282,-502.14058153,0.00013698,2]
[333770099,1722468641292,-500.0,0.00013698,2]
[333770100,1722468641302,-500.0,0.00013698,2]
[333770101,1722468641311,-500.0,0.00013698,2]
[333770102,1722468641321,-500.0,0.00013698,2]
[333770103,1722468641331,-500.0,0.00013698,2]
[333770104,1722468641340,-500.0,0.00013698,2]
[333770105,1722468641350,-500.0,0.00013698,2]
[333770106,1722468641359,-500.0,0.00013698,2]
[333770107,1722468641369,-500.0,0.00013698,2]
[333770108,1722468641378,-503.97902006,0.00013698,2]
[333770109,1722468641388,-1526.65,0.00013698,2]
[333770110,1722468641397,-500.0,0.00013698,2]
[333770111,1722468641406,-500.0,0.00013698,2]
[333770112,1722468641416,-500.0,0.00013698,2]
[333770113,1722468641426,-158.7865081,0.00013698,2]
[333770114,1722468641435,-404.49726341,0.00013698,2]
[333770115,1722468641446,-500.0,0.00013698,2]
[333770116,1722468641457,-500.0,0.00013698,2]
[333770117,1722468641468,-500.0,0.00013698,2]
[333770118,1722468641478,-222.26444131,0.00013698,2]
[333770119,1722468641487,-151.0,0.00013698,2]
[333770120,1722468641496,-500.0,0.00013698,2]
[333770121,1722468641505,-500.0,0.00013698,2]
[333770122,1722468641515,-500.0,0.00013698,2]
[333770123,1722468641524,-500.0,0.00013698,2]
[333770124,1722468641534,-500.0,0.00013698,2]
[333770125,1722468641543,-504.47290326,0.00013698,2]
[333770126,1722468641553,-500.0,0.00013698,2]
[333770127,1722468641562,-521.44797603,0.00013698,2]
[333770128,1722468641572,-501.28911878,0.00013698,2]
[333770129,1722468641581,-612.69,0.00013698,2]
[333770130,1722468641591,-500.0,0.00013698,2]
[333770131,1722468641600,-500.0,0.00013698,2]
[333770132,1722468641611,-500.0,0.00013698,2]
[333770133,1722468641621,-151.035911,0.00013698,2]
[333770134,1722468641632,-500.0,0.00013698,2]
[333770135,1722468641642,-500.0,0.00013698,2]
[333770136,1722468641653,-841.24,0.00013698,2]
[333770137,1722468641664,-967.96,0.00013698,2]
[333770138,1722468641673,-500.0,0.00013698,2]
[333770139,1722468641684,-500.0,0.00013698,2]
[333770140,1722468641693,-500.0,0.00013698,2]
[333770141,1722468641703,-500.0,0.00013698,2]
[333770142,1722468641713,-500.0,0.00013698,2]
[333770143,1722468641724,-515.87197613,0.00013698,2]
[333770144,1722468641733,-500.0,0.00013698,2]
[333770145,1722468641743,-500.0,0.00013698,2]
[333770146,1722468641752,-500.0,0.00013698,2]
[333770147,1722468641762,-500.0,0.00013698,2]
[333770148,1722468641772,-151.0,0.00013698,2]
[333770149,1722468641781,-599.53,0.00013698,2]
[333770150,1722468641791,-151.0,0.00013698,2]
[333770151,1722468641800,-500.0,0.00013698,2]
[333770152,1722468641809,-500.0,0.00013698,2]
[333770153,1722468641819,-500.0,0.00013698,2]
[333770154,1722468641828,-502.54781932,0.00013698,2]
[333770155,1722468641838,-500.0,0.00013698,2]
[333770156,1722468641847,-500.0,0.00013698,2]
[333770157,1722468641857,-500.0,0.00013698,2]
[333770158,1722468641870,-500.0,0.00013698,2]
[333770159,1722468641880,-349.80289992,0.00013698,2]
[333770160,1722468641891,-501.16610699,0.00013698,2]
[333770161,1722468641900,-1111.72,0.00013698,2]
[333770162,1722468641910,-280.88611642,0.00013698,2]
[333770163,1722468641920,-500.0,0.00013698,2]
[333770164,1722468641930,-500.0,0.00013698,2]
[333770165,1722468641941,-500.0,0.00013698,2]
[333770166,1722468641950,-500.0,0.00013698,2]
[333770167,1722468641960,-513.42146559,0.00013698,2]
[333770168,1722468641969,-500.0,0.00013698,2]
[333770169,1722468641980,-151.216178,0.00013698,2]
[333770170,1722468641989,-500.0,0.00013698,2]
[333770171,1722468641998,-500.0,0.00013698,2]
[333770172,1722468642008,-500.0,0.00013698,2]
[333770173,1722468642018,-500.0,0.00013698,2]
[333770174,1722468642027,-500.0,0.00013698,2]
[333770175,1722468642037,-500.0,0.00013698,2]
[333770176,1722468642046,-500.0,0.00013698,2]
[333770177,1722468642056,-500.0,0.00013698,2]
[333770178,1722468642065,-500.0,0.00013698,2]
[333770179,1722468642074,-500.0,0.00013698,2]
[333770180,1722468642083,-500.0,0.00013698,2]
[333770181,1722468642093,-500.0,0.00013698,2]
[333770182,1722468642102,-432.927573,0.00013698,2]
[333770183,1722468642111,-500.0,0.00013698,2]
[333770184,1722468642121,-500.0,0.00013698,2]
[333770185,1722468642130,-432.927573,0.00013698,2]
[333770186,1722468642139,-505.33990903,0.00013698,2]
[333770187,1722468642149,-500.0,0.00013698,2]
[333770188,1722468642158,-500.0,0.00013698,2]
[333770189,1722468642168,-500.0,0.00013698,2]
[333770190,1722468642177,-500.0,0.00013698,2]
[333770191,1722468642187,-500.0,0.00013698,2]
[333770192,1722468642196,-468.79449317,0.00013698,2]
[333770193,1722468642205,-500.0,0.00013698,2]
[333770194,1722468642215,-500.0,0.00013698,2]
[333770195,1722468642225,-500.0,0.00013698,2]
[333770196,1722468642236,-500.0,0.00013698,2]
[333770197,1722468642245,-500.0,0.00013698,2]
[333770198,1722468642255,-500.0,0.00013698,2]
[333770199,1722468642264,-500.0,0.00013698,2]
[333770200,1722468642274,-500.0,0.00013698,2]
[333770201,1722468642283,-500.0,0.00013698,2]
[333770202,1722468642293,-500.0,0.00013698,2]
[333770203,1722468642303,-500.0,0.00013698,2]
[333770204,1722468642312,-500.0,0.00013698,2]
[333770205,1722468642321,-500.0,0.00013698,2]
[333770206,1722468642331,-500.0,0.00013698,2]
[333770207,1722468642340,-994.38,0.00013698,2]
[333770208,1722468642350,-500.0,0.00013698,2]
[333770209,1722468642359,-305.64838923,0.00013698,2]
[333770210,1722468642368,-505.87608225,0.00013698,2]
[333770211,1722468642378,-500.0,0.00013698,2]
[333770212,1722468642387,-500.0,0.00013698,2]
[333770213,1722468642397,-500.0,0.00013698,2]
[333770214,1722468642406,-500.0,0.00013698,2]
[333770216,1722468642416,-500.0,0.00013698,2]
[333770217,1722468642425,-501.49133993,0.00013698,2]
[333770218,1722468642434,-500.0,0.00013698,2]